[Event "Chessable Masters - Torneo preliminare"]
[White "Steinberg, Nitzan"]
[Black "Sargissian, Gabriel"]
[WhiteFideId "2801795"]
[BlackFideId "13300881"]
[WhiteElo "2500"]
[BlackElo "2628"]
[Result "1-0"]
[Round "6"]
[TimeControl "600+2"]
[Date "2023.03.13"]
[WhiteClock "0:03:29"]
[BlackClock "0:07:46"]

1. e4 {[%clk 0:09:59]}  e5 {[%clk 0:10:00]} 2. Nf3 {[%clk 0:10:00]}  Nc6 {[%clk 0:10:02]} 3. Bb5 {[%clk 0:10:01]}  a6 {[%clk 0:10:03]} 4. Ba4 {[%clk 0:10:02]}  Nf6 {[%clk 0:10:04]} 5. O-O {[%clk 0:10:04]}  Be7 {[%clk 0:10:05]} 6. Re1 {[%clk 0:10:05]}  b5 {[%clk 0:10:07]} 7. Bb3 {[%clk 0:10:06]}  O-O {[%clk 0:10:08]} 8. h3 {[%clk 0:10:05]}  Bb7 {[%clk 0:10:05]} 9. d3 {[%clk 0:10:02]}  d6 {[%clk 0:10:00]} 10. a3 {[%clk 0:10:01]}  Qd7 {[%clk 0:09:59]} 11. Nc3 {[%clk 0:09:59]}  Rae8 {[%clk 0:09:58]} 12. Bg5 {[%clk 0:09:53]}  h6 {[%clk 0:09:58]} 13. Bxf6 {[%clk 0:09:32]}  Bxf6 {[%clk 0:10:00]} 14. a4 {[%clk 0:09:22]}  b4 {[%clk 0:10:00]} 15. Nd5 {[%clk 0:09:22]}  Bd8 {[%clk 0:10:00]} 16. a5 {[%clk 0:09:22]}  Kh8 {[%clk 0:09:48]} 17. Ba4 {[%clk 0:08:50]}  Qc8 {[%clk 0:09:49]} 18. Qd2 {[%clk 0:08:44]}  Re6 {[%clk 0:09:50]} 19. Ne3 {[%clk 0:05:04]}  Ne7 {[%clk 0:09:23]} 20. Bb3 {[%clk 0:04:45]}  Rg6 {[%clk 0:09:20]} 21. Nh4 {[%clk 0:04:45]}  Rg5 {[%clk 0:09:17]} 22. Nf3 {[%clk 0:04:42]}  Rh5 {[%clk 0:08:51]} 23. Qd1 {[%clk 0:04:24]}  g6 {[%clk 0:08:49]} 24. g4 {[%clk 0:04:13]}  Rxh3 {[%clk 0:08:40]} 25. Kg2 {[%clk 0:04:14]}  Rxf3 {[%clk 0:08:39]} 26. Qxf3 {[%clk 0:04:16]}  Nc6 {[%clk 0:08:33]} 27. Rh1 {[%clk 0:03:44]}  Bg5 {[%clk 0:08:33]} 28. Rxh6+ {[%clk 0:03:29]}  Bxh6 {[%clk 0:07:55]} 29. Qf6+ {[%clk 0:03:29]}  Kh7 {[%clk 0:07:56]} 30. Rh1 {[%clk 0:03:27]}  Qd8 {[%clk 0:07:49]} 31. Rxh6+ {[%clk 0:03:28]}  Kxh6 {[%clk 0:07:46]} 32. Nf5+ {[%clk 0:03:29]} 1-0


[Site "Internet"]

[Event "Chessable Masters - Torneo preliminare"]
[White "Rasulov, Vugar"]
[Black "Raja, Harshit"]
[WhiteFideId "13402390"]
[BlackFideId "5089000"]
[WhiteElo "2415"]
[BlackElo "2361"]
[Result "1-0"]
[Round "6"]
[TimeControl "600+2"]
[Date "2023.03.13"]
[WhiteClock "0:00:41"]
[BlackClock "0:00:03"]

1. d4 {[%clk 0:10:01]}  Nf6 {[%clk 0:09:59]} 2. c4 {[%clk 0:10:02]}  e6 {[%clk 0:09:55]} 3. Nf3 {[%clk 0:10:03]}  d5 {[%clk 0:09:56]} 4. Bg5 {[%clk 0:09:59]}  dxc4 {[%clk 0:09:53]} 5. Qa4+ {[%clk 0:09:50]}  Nbd7 {[%clk 0:09:27]} 6. e4 {[%clk 0:09:39]}  Be7 {[%clk 0:09:13]} 7. e5 {[%clk 0:09:20]}  Nd5 {[%clk 0:09:10]} 8. Bxe7 {[%clk 0:09:21]}  Qxe7 {[%clk 0:09:11]} 9. Bxc4 {[%clk 0:09:10]}  Nf4 {[%clk 0:08:58]} 10. O-O {[%clk 0:09:01]}  O-O {[%clk 0:08:56]} 11. Qc2 {[%clk 0:08:53]}  Nb6 {[%clk 0:08:50]} 12. Rc1 {[%clk 0:08:27]}  c5 {[%clk 0:07:28]} 13. Qd2 {[%clk 0:08:14]}  Nfd5 {[%clk 0:06:57]} 14. Bxd5 {[%clk 0:07:56]}  Nxd5 {[%clk 0:06:59]} 15. dxc5 {[%clk 0:07:46]}  Rd8 {[%clk 0:06:58]} 16. Na3 {[%clk 0:07:33]}  b6 {[%clk 0:06:52]} 17. cxb6 {[%clk 0:07:03]}  axb6 {[%clk 0:06:49]} 18. Nb5 {[%clk 0:06:57]}  Bb7 {[%clk 0:06:42]} 19. Nd6 {[%clk 0:06:56]}  Ra4 {[%clk 0:06:34]} 20. Rc4 {[%clk 0:05:28]}  Rxc4 {[%clk 0:06:08]} 21. Nxc4 {[%clk 0:05:30]}  Nb4 {[%clk 0:06:09]} 22. Qg5 {[%clk 0:04:20]}  Qc7 {[%clk 0:04:42]} 23. b3 {[%clk 0:03:59]}  b5 {[%clk 0:04:04]} 24. Nd6 {[%clk 0:03:58]}  Bxf3 {[%clk 0:03:59]} 25. gxf3 {[%clk 0:03:59]}  h6 {[%clk 0:03:45]} 26. Qh4 {[%clk 0:03:28]}  Nd3 {[%clk 0:03:39]} 27. Nxb5 {[%clk 0:03:08]}  Qb6 {[%clk 0:03:39]} 28. a4 {[%clk 0:02:36]}  g5 {[%clk 0:03:16]} 29. Qg3 {[%clk 0:02:29]}  Nf4 {[%clk 0:03:17]} 30. Kh1 {[%clk 0:02:14]}  Qc6 {[%clk 0:03:12]} 31. Nd6 {[%clk 0:01:59]}  Rb8 {[%clk 0:03:02]} 32. h4 {[%clk 0:01:43]}  Rxb3 {[%clk 0:02:24]} 33. Ne4 {[%clk 0:01:44]}  Ng6 {[%clk 0:01:55]} 34. hxg5 {[%clk 0:01:40]}  h5 {[%clk 0:01:49]} 35. Rd1 {[%clk 0:01:35]}  Qa8 {[%clk 0:01:17]} 36. Kg2 {[%clk 0:01:08]}  Kg7 {[%clk 0:00:31]} 37. Rh1 {[%clk 0:01:07]}  h4 {[%clk 0:00:22]} 38. Rxh4 {[%clk 0:01:08]}  Nxh4+ {[%clk 0:00:22]} 39. Qxh4 {[%clk 0:01:10]}  Qh8 {[%clk 0:00:18]} 40. Qf4 {[%clk 0:01:11]}  Qh7 {[%clk 0:00:15]} 41. Qf6+ {[%clk 0:01:10]}  Kg8 {[%clk 0:00:17]} 42. Qd8+ {[%clk 0:01:08]}  Kg7 {[%clk 0:00:18]} 43. Nf6 {[%clk 0:01:06]}  Qh8 {[%clk 0:00:17]} 44. Ne8+ {[%clk 0:00:57]}  Kg6 {[%clk 0:00:13]} 45. Qd1 {[%clk 0:00:48]}  Rb8 {[%clk 0:00:09]} 46. Qd3+ {[%clk 0:00:45]}  Kxg5 {[%clk 0:00:09]} 47. Qe3+ {[%clk 0:00:40]}  Kg6 {[%clk 0:00:07]} 48. Qe4+ {[%clk 0:00:42]}  Kh6 {[%clk 0:00:03]} 49. Qh4+ {[%clk 0:00:41]} 1-0


[Site "Internet"]

[Event "Chessable Masters - Torneo preliminare"]
[White "Matinian, Nikita"]
[Black "Ju, Wenjun"]
[WhiteFideId "24129100"]
[BlackFideId "8603006"]
[WhiteElo "2326"]
[BlackElo "2598"]
[Result "0-1"]
[Round "6"]
[TimeControl "600+2"]
[Date "2023.03.13"]
[WhiteClock "0:00:07"]
[BlackClock "0:00:52"]

1. e4 {[%clk 0:10:01]}  e5 {[%clk 0:09:58]} 2. Nf3 {[%clk 0:10:02]}  Nc6 {[%clk 0:10:00]} 3. Bb5 {[%clk 0:10:04]}  a6 {[%clk 0:09:59]} 4. Ba4 {[%clk 0:10:05]}  Nf6 {[%clk 0:10:00]} 5. O-O {[%clk 0:10:04]}  Bc5 {[%clk 0:09:46]} 6. c3 {[%clk 0:10:02]}  b5 {[%clk 0:09:45]} 7. Bc2 {[%clk 0:09:58]}  d5 {[%clk 0:09:43]} 8. a4 {[%clk 0:09:53]}  dxe4 {[%clk 0:09:00]} 9. Ng5 {[%clk 0:09:53]}  b4 {[%clk 0:06:25]} 10. Nxe4 {[%clk 0:09:49]}  Nxe4 {[%clk 0:05:39]} 11. Bxe4 {[%clk 0:09:51]}  Bb7 {[%clk 0:05:40]} 12. d4 {[%clk 0:08:17]}  exd4 {[%clk 0:05:23]} 13. Re1 {[%clk 0:08:17]}  Be7 {[%clk 0:05:05]} 14. Bg5 {[%clk 0:07:13]}  f6 {[%clk 0:05:00]} 15. Bf4 {[%clk 0:07:04]}  g6 {[%clk 0:03:14]} 16. cxb4 {[%clk 0:05:42]}  O-O {[%clk 0:03:07]} 17. Qf3 {[%clk 0:05:31]}  Qd7 {[%clk 0:02:49]} 18. Nd2 {[%clk 0:05:30]}  Bxb4 {[%clk 0:02:25]} 19. Rec1 {[%clk 0:05:03]}  g5 {[%clk 0:02:13]} 20. Bxc6 {[%clk 0:02:27]}  Bxc6 {[%clk 0:02:13]} 21. Qxc6 {[%clk 0:02:28]}  Qxc6 {[%clk 0:02:12]} 22. Rxc6 {[%clk 0:02:30]}  gxf4 {[%clk 0:02:13]} 23. Nf3 {[%clk 0:02:31]}  d3 {[%clk 0:02:07]} 24. Rd1 {[%clk 0:02:32]}  d2 {[%clk 0:01:55]} 25. g3 {[%clk 0:01:48]}  fxg3 {[%clk 0:01:34]} 26. fxg3 {[%clk 0:01:49]}  a5 {[%clk 0:01:33]} 27. Kf2 {[%clk 0:01:49]}  Rf7 {[%clk 0:01:26]} 28. g4 {[%clk 0:00:58]}  Rd8 {[%clk 0:01:19]} 29. h4 {[%clk 0:00:57]}  Kg7 {[%clk 0:01:12]} 30. h5 {[%clk 0:00:57]}  Re7 {[%clk 0:01:07]} 31. h6+ {[%clk 0:00:53]}  Kf7 {[%clk 0:01:05]} 32. g5 {[%clk 0:00:44]}  fxg5 {[%clk 0:01:01]} 33. Nxg5+ {[%clk 0:00:46]}  Kg8 {[%clk 0:01:02]} 34. Ne6 {[%clk 0:00:31]}  Rd6 {[%clk 0:00:52]} 35. Rxd6 {[%clk 0:00:12]}  cxd6 {[%clk 0:00:54]} 36. Nf4 {[%clk 0:00:07]}  Re1 {[%clk 0:00:52]} 0-1


[Site "Internet"]

[Event "Chessable Masters - Torneo preliminare"]
[White "Malakhov, Vladimir"]
[Black "Mikaelyan, Arman"]
[WhiteFideId "4120787"]
[BlackFideId "13304852"]
[WhiteElo "2666"]
[BlackElo "2456"]
[Result "1-0"]
[Round "6"]
[TimeControl "600+2"]
[Date "2023.03.13"]
[WhiteClock "0:05:22"]
[BlackClock "0:00:18"]

1. e4 {[%clk 0:10:01]}  e5 {[%clk 0:09:57]} 2. Nf3 {[%clk 0:10:02]}  Nc6 {[%clk 0:09:58]} 3. Bc4 {[%clk 0:10:02]}  Bc5 {[%clk 0:09:57]} 4. O-O {[%clk 0:10:01]}  Nf6 {[%clk 0:09:59]} 5. d3 {[%clk 0:10:02]}  d6 {[%clk 0:09:59]} 6. c3 {[%clk 0:10:02]}  a6 {[%clk 0:09:58]} 7. a4 {[%clk 0:09:54]}  Ba7 {[%clk 0:09:16]} 8. Re1 {[%clk 0:09:43]}  O-O {[%clk 0:09:12]} 9. h3 {[%clk 0:09:38]}  Kh8 {[%clk 0:08:25]} 10. Nbd2 {[%clk 0:09:29]}  h6 {[%clk 0:08:07]} 11. Nf1 {[%clk 0:09:27]}  Be6 {[%clk 0:07:06]} 12. a5 {[%clk 0:09:01]}  Nxe4 {[%clk 0:06:35]} 13. Rxe4 {[%clk 0:08:48]}  d5 {[%clk 0:06:34]} 14. Rh4 {[%clk 0:08:19]}  dxc4 {[%clk 0:06:26]} 15. Bxh6 {[%clk 0:08:20]}  Qxd3 {[%clk 0:04:37]} 16. Bd2+ {[%clk 0:06:55]}  Kg8 {[%clk 0:04:36]} 17. Ng5 {[%clk 0:06:56]}  Qg6 {[%clk 0:04:14]} 18. Nxe6 {[%clk 0:06:54]}  Qxe6 {[%clk 0:04:12]} 19. Qh5 {[%clk 0:06:46]}  f6 {[%clk 0:04:08]} 20. Qh7+ {[%clk 0:06:27]}  Kf7 {[%clk 0:04:07]} 21. Rg4 {[%clk 0:06:27]}  Ne7 {[%clk 0:03:07]} 22. Rxg7+ {[%clk 0:06:11]}  Ke8 {[%clk 0:03:08]} 23. Be3 {[%clk 0:06:07]}  Nf5 {[%clk 0:01:47]} 24. Rxc7 {[%clk 0:06:01]}  Bxe3 {[%clk 0:01:36]} 25. Nxe3 {[%clk 0:05:35]}  Nxe3 {[%clk 0:01:30]} 26. fxe3 {[%clk 0:05:35]}  Rg8 {[%clk 0:01:18]} 27. Rd1 {[%clk 0:05:24]}  Rd8 {[%clk 0:00:18]} 28. Qh5+ {[%clk 0:05:22]} 1-0


[Site "Internet"]

[Event "Chessable Masters - Torneo preliminare"]
[White "Vasquez Schroeder, Rodrigo"]
[Black "Volkov, Sergey"]
[WhiteFideId "3400042"]
[BlackFideId "4122763"]
[WhiteElo "2589"]
[BlackElo "2496"]
[Result "0-1"]
[Round "6"]
[TimeControl "600+2"]
[Date "2023.03.13"]
[WhiteClock "0:05:48"]
[BlackClock "0:03:06"]

1. e4 {[%clk 0:10:01]}  e6 {[%clk 0:10:00]} 2. d4 {[%clk 0:10:02]}  d5 {[%clk 0:10:01]} 3. Nc3 {[%clk 0:10:04]}  Nf6 {[%clk 0:10:01]} 4. e5 {[%clk 0:10:05]}  Nfd7 {[%clk 0:10:02]} 5. Nce2 {[%clk 0:10:07]}  c5 {[%clk 0:10:03]} 6. c3 {[%clk 0:10:08]}  Nc6 {[%clk 0:10:02]} 7. f4 {[%clk 0:10:09]}  a5 {[%clk 0:10:00]} 8. Nf3 {[%clk 0:10:09]}  a4 {[%clk 0:10:01]} 9. a3 {[%clk 0:10:10]}  Qb6 {[%clk 0:09:55]} 10. f5 {[%clk 0:09:37]}  Qb3 {[%clk 0:09:27]} 11. fxe6 {[%clk 0:09:32]}  Qxd1+ {[%clk 0:08:47]} 12. Kxd1 {[%clk 0:09:32]}  fxe6 {[%clk 0:08:48]} 13. Nf4 {[%clk 0:09:33]}  Nb6 {[%clk 0:08:28]} 14. Bd3 {[%clk 0:09:27]}  cxd4 {[%clk 0:08:11]} 15. cxd4 {[%clk 0:09:28]}  Be7 {[%clk 0:08:07]} 16. h4 {[%clk 0:09:13]}  Nc4 {[%clk 0:06:35]} 17. Bxc4 {[%clk 0:08:36]}  dxc4 {[%clk 0:06:34]} 18. Bd2 {[%clk 0:08:32]}  O-O {[%clk 0:06:27]} 19. Ke2 {[%clk 0:08:17]}  b5 {[%clk 0:06:04]} 20. g3 {[%clk 0:08:14]}  Bd8 {[%clk 0:05:25]} 21. Rhf1 {[%clk 0:08:04]}  Bb6 {[%clk 0:05:24]} 22. Bc3 {[%clk 0:08:05]}  h6 {[%clk 0:05:11]} 23. Rad1 {[%clk 0:08:01]}  Ra7 {[%clk 0:05:02]} 24. h5 {[%clk 0:07:49]}  Raf7 {[%clk 0:04:56]} 25. Nh4 {[%clk 0:07:39]}  Rd8 {[%clk 0:04:50]} 26. Nf3 {[%clk 0:07:38]}  Ne7 {[%clk 0:04:46]} 27. Nh4 {[%clk 0:07:25]}  Nc6 {[%clk 0:04:34]} 28. Nf3 {[%clk 0:06:52]}  Rf5 {[%clk 0:04:32]} 29. d5 {[%clk 0:06:38]}  exd5 {[%clk 0:04:18]} 30. Nxd5 {[%clk 0:06:37]}  Bc5 {[%clk 0:04:16]} 31. Ne3 {[%clk 0:06:27]}  Rff8 {[%clk 0:04:10]} 32. Rxd8 {[%clk 0:06:18]}  Rxd8 {[%clk 0:04:07]} 33. Nh4 {[%clk 0:06:16]}  Rd3 {[%clk 0:03:52]} 34. Nef5 {[%clk 0:06:09]}  Bxa3 {[%clk 0:03:37]} 35. bxa3 {[%clk 0:05:47]}  Rxc3 {[%clk 0:03:36]} 36. Ng6 {[%clk 0:05:48]}  Bxf5 {[%clk 0:03:05]} 37. Rxf5 {[%clk 0:05:48]}  Nd4+ {[%clk 0:03:06]} 0-1


[Site "Internet"]

[Event "Chessable Masters - Torneo preliminare"]
[White "Agrest, Evgenij"]
[Black "Sasikiran, Krishnan"]
[WhiteFideId "1705024"]
[BlackFideId "5004985"]
[WhiteElo "2576"]
[BlackElo "2559"]
[Result "1-0"]
[Round "6"]
[TimeControl "600+2"]
[Date "2023.03.13"]
[WhiteClock "0:00:21"]
[BlackClock "0:00:22"]

1. Nf3 {[%clk 0:09:10]}  d5 {[%clk 0:09:55]} 2. e3 {[%clk 0:09:10]}  Nf6 {[%clk 0:09:53]} 3. c4 {[%clk 0:09:09]}  c6 {[%clk 0:09:54]} 4. Qc2 {[%clk 0:09:08]}  g6 {[%clk 0:09:33]} 5. b3 {[%clk 0:09:06]}  Bg7 {[%clk 0:09:34]} 6. Bb2 {[%clk 0:09:04]}  O-O {[%clk 0:09:32]} 7. Be2 {[%clk 0:09:03]}  Bf5 {[%clk 0:08:55]} 8. d3 {[%clk 0:09:02]}  Nbd7 {[%clk 0:08:34]} 9. O-O {[%clk 0:08:55]}  Bg4 {[%clk 0:08:15]} 10. Nbd2 {[%clk 0:08:49]}  Re8 {[%clk 0:08:14]} 11. h3 {[%clk 0:08:31]}  Bxf3 {[%clk 0:08:14]} 12. Bxf3 {[%clk 0:08:32]}  e6 {[%clk 0:08:07]} 13. Rad1 {[%clk 0:08:11]}  a5 {[%clk 0:08:04]} 14. e4 {[%clk 0:07:59]}  dxe4 {[%clk 0:07:59]} 15. dxe4 {[%clk 0:07:58]}  Qc7 {[%clk 0:07:52]} 16. Rfe1 {[%clk 0:07:47]}  e5 {[%clk 0:07:37]} 17. c5 {[%clk 0:07:35]}  Bf8 {[%clk 0:07:37]} 18. Ba3 {[%clk 0:07:17]}  Re6 {[%clk 0:07:18]} 19. Bg4 {[%clk 0:07:04]}  Nxg4 {[%clk 0:07:09]} 20. hxg4 {[%clk 0:07:04]}  h6 {[%clk 0:07:06]} 21. Nf3 {[%clk 0:06:48]}  Kg7 {[%clk 0:06:32]} 22. Re3 {[%clk 0:06:35]}  Nf6 {[%clk 0:06:09]} 23. g5 {[%clk 0:06:29]}  hxg5 {[%clk 0:06:07]} 24. Nxg5 {[%clk 0:06:28]}  Ree8 {[%clk 0:06:08]} 25. Red3 {[%clk 0:05:56]}  Rad8 {[%clk 0:06:06]} 26. Qc3 {[%clk 0:05:30]}  Rxd3 {[%clk 0:05:37]} 27. Rxd3 {[%clk 0:05:29]}  Rd8 {[%clk 0:05:26]} 28. g3 {[%clk 0:03:54]}  Rxd3 {[%clk 0:04:58]} 29. Qxd3 {[%clk 0:03:53]}  Qd7 {[%clk 0:04:59]} 30. Qc3 {[%clk 0:03:01]}  Ng4 {[%clk 0:03:51]} 31. Kg2 {[%clk 0:01:58]}  f6 {[%clk 0:03:18]} 32. Nf3 {[%clk 0:01:55]}  b6 {[%clk 0:02:09]} 33. cxb6 {[%clk 0:01:41]}  Bxa3 {[%clk 0:02:00]} 34. Qxa5 {[%clk 0:01:41]}  Bd6 {[%clk 0:01:01]} 35. Qa7 {[%clk 0:01:38]}  Qe7 {[%clk 0:00:59]} 36. b7 {[%clk 0:01:31]}  Kf7 {[%clk 0:00:58]} 37. b8=Q {[%clk 0:01:20]}  Bxb8 {[%clk 0:00:58]} 38. Qxb8 {[%clk 0:01:21]}  Kg7 {[%clk 0:00:42]} 39. Qc8 {[%clk 0:01:18]}  f5 {[%clk 0:00:35]} 40. exf5 {[%clk 0:01:03]}  e4 {[%clk 0:00:36]} 41. Nd4 {[%clk 0:00:50]}  e3 {[%clk 0:00:37]} 42. Qxc6 {[%clk 0:00:27]}  Ne5 {[%clk 0:00:22]} 43. f6+ {[%clk 0:00:20]}  Qxf6 {[%clk 0:00:22]} 44. Qxf6+ {[%clk 0:00:20]}  Kxf6 {[%clk 0:00:22]} 45. fxe3 {[%clk 0:00:21]} 1-0


[Site "Internet"]

[Event "Chessable Masters - Torneo preliminare"]
[White "Christiansen, Johan-Sebastian"]
[Black "Girya, Olga"]
[WhiteFideId "1512668"]
[BlackFideId "4195752"]
[WhiteElo "2481"]
[BlackElo "2327"]
[Result "1-0"]
[Round "6"]
[TimeControl "600+2"]
[Date "2023.03.13"]
[WhiteClock "0:04:46"]
[BlackClock "0:00:03"]

1. e4 {[%clk 0:10:01]}  e5 {[%clk 0:10:00]} 2. Nf3 {[%clk 0:10:03]}  Nc6 {[%clk 0:10:01]} 3. Nc3 {[%clk 0:10:04]}  Nf6 {[%clk 0:10:02]} 4. a3 {[%clk 0:10:06]}  d5 {[%clk 0:09:43]} 5. Bb5 {[%clk 0:10:07]}  Nxe4 {[%clk 0:09:02]} 6. Nxe5 {[%clk 0:10:08]}  Qf6 {[%clk 0:07:40]} 7. Nf3 {[%clk 0:10:08]}  Be6 {[%clk 0:06:12]} 8. O-O {[%clk 0:10:09]}  Bd6 {[%clk 0:05:57]} 9. Re1 {[%clk 0:10:10]}  O-O {[%clk 0:05:22]} 10. Nxe4 {[%clk 0:10:09]}  dxe4 {[%clk 0:05:22]} 11. Rxe4 {[%clk 0:10:11]}  Bd5 {[%clk 0:05:16]} 12. Re3 {[%clk 0:10:11]}  Bf4 {[%clk 0:04:09]} 13. d4 {[%clk 0:10:05]}  Bxe3 {[%clk 0:04:02]} 14. Bxe3 {[%clk 0:10:06]}  Rad8 {[%clk 0:03:47]} 15. c3 {[%clk 0:10:03]}  Bxf3 {[%clk 0:03:17]} 16. Qxf3 {[%clk 0:10:04]}  Qxf3 {[%clk 0:03:17]} 17. gxf3 {[%clk 0:10:06]}  Ne7 {[%clk 0:03:18]} 18. Bg5 {[%clk 0:09:26]}  f6 {[%clk 0:03:19]} 19. Bc4+ {[%clk 0:09:27]}  Nd5 {[%clk 0:03:16]} 20. Bd2 {[%clk 0:09:26]}  c6 {[%clk 0:03:10]} 21. Kf1 {[%clk 0:09:26]}  Rfe8 {[%clk 0:03:04]} 22. a4 {[%clk 0:09:28]}  a5 {[%clk 0:03:00]} 23. Ra3 {[%clk 0:09:25]}  Kh8 {[%clk 0:02:52]} 24. Rb3 {[%clk 0:09:26]}  Re7 {[%clk 0:02:46]} 25. Be2 {[%clk 0:08:39]}  g5 {[%clk 0:02:38]} 26. Bd3 {[%clk 0:08:37]}  Nf4 {[%clk 0:02:27]} 27. Bf5 {[%clk 0:08:31]}  Kg7 {[%clk 0:02:18]} 28. Be3 {[%clk 0:08:15]}  Ng6 {[%clk 0:02:05]} 29. Bd3 {[%clk 0:07:41]}  h6 {[%clk 0:01:59]} 30. Ra3 {[%clk 0:07:32]}  Nh4 {[%clk 0:01:58]} 31. f4 {[%clk 0:07:18]}  Nf3 {[%clk 0:01:40]} 32. fxg5 {[%clk 0:06:39]}  hxg5 {[%clk 0:01:05]} 33. Be2 {[%clk 0:06:39]}  Nh4 {[%clk 0:00:52]} 34. Bd3 {[%clk 0:06:31]}  Rde8 {[%clk 0:00:49]} 35. Rb3 {[%clk 0:06:27]}  Ng6 {[%clk 0:00:43]} 36. Rb6 {[%clk 0:06:17]}  Rh8 {[%clk 0:00:42]} 37. Kg2 {[%clk 0:06:16]}  Nf4+ {[%clk 0:00:34]} 38. Bxf4 {[%clk 0:06:16]}  gxf4 {[%clk 0:00:36]} 39. Bf5 {[%clk 0:05:46]}  Rh5 {[%clk 0:00:36]} 40. Bc8 {[%clk 0:05:47]}  c5 {[%clk 0:00:07]} 41. Bxb7 {[%clk 0:05:19]}  cxd4 {[%clk 0:00:08]} 42. cxd4 {[%clk 0:05:21]}  Rd7 {[%clk 0:00:09]} 43. d5 {[%clk 0:05:21]}  Kf7 {[%clk 0:00:06]} 44. Bc6 {[%clk 0:05:20]}  Re7 {[%clk 0:00:03]} 45. d6 {[%clk 0:05:03]}  Ra7 {[%clk 0:00:04]} 46. Rb8 {[%clk 0:04:52]}  Rg5+ {[%clk 0:00:03]} 47. Kf3 {[%clk 0:04:54]}  Ke6 {[%clk 0:00:02]} 48. d7 {[%clk 0:04:51]}  Rxd7 {[%clk 0:00:03]} 49. Bxd7+ {[%clk 0:04:52]}  Kxd7 {[%clk 0:00:05]} 50. Rb5 {[%clk 0:04:51]}  Rg8 {[%clk 0:00:02]} 51. Rxa5 {[%clk 0:04:51]}  Rb8 {[%clk 0:00:03]} 52. Rb5 {[%clk 0:04:50]}  Rc8 {[%clk 0:00:03]} 53. a5 {[%clk 0:04:46]} 1-0


[Site "Internet"]

[Event "Chessable Masters - Torneo preliminare"]
[White "Makhnev, Denis"]
[Black "Santos Ruiz, Miguel"]
[WhiteFideId "13707647"]
[BlackFideId "22291482"]
[WhiteElo "2505"]
[BlackElo "2491"]
[Result "1-0"]
[Round "6"]
[TimeControl "600+2"]
[Date "2023.03.13"]
[WhiteClock "0:01:50"]
[BlackClock "0:06:02"]

1. d4 {[%clk 0:09:52]}  Nf6 {[%clk 0:09:57]} 2. c4 {[%clk 0:09:51]}  e6 {[%clk 0:09:58]} 3. Nf3 {[%clk 0:09:52]}  d5 {[%clk 0:09:59]} 4. Nc3 {[%clk 0:09:52]}  Bb4 {[%clk 0:10:00]} 5. Qa4+ {[%clk 0:09:48]}  Nc6 {[%clk 0:10:01]} 6. e3 {[%clk 0:09:50]}  O-O {[%clk 0:10:01]} 7. Qc2 {[%clk 0:09:51]}  Re8 {[%clk 0:09:50]} 8. Bd2 {[%clk 0:09:51]}  Bf8 {[%clk 0:09:49]} 9. a3 {[%clk 0:09:47]}  e5 {[%clk 0:09:50]} 10. dxe5 {[%clk 0:09:46]}  Nxe5 {[%clk 0:09:51]} 11. cxd5 {[%clk 0:09:48]}  Nxf3+ {[%clk 0:09:40]} 12. gxf3 {[%clk 0:09:49]}  Nxd5 {[%clk 0:09:42]} 13. O-O-O {[%clk 0:09:50]}  a6 {[%clk 0:09:39]} 14. Rg1 {[%clk 0:09:18]}  a5 {[%clk 0:09:39]} 15. Be1 {[%clk 0:09:08]}  c6 {[%clk 0:09:24]} 16. e4 {[%clk 0:09:07]}  Be6 {[%clk 0:09:02]} 17. exd5 {[%clk 0:09:07]}  cxd5 {[%clk 0:09:03]} 18. Kb1 {[%clk 0:08:54]}  d4 {[%clk 0:09:02]} 19. Ne4 {[%clk 0:07:41]}  Be7 {[%clk 0:08:26]} 20. Bc3 {[%clk 0:07:14]}  Qd5 {[%clk 0:08:10]} 21. Rxd4 {[%clk 0:06:59]}  Qa2+ {[%clk 0:08:09]} 22. Kc1 {[%clk 0:07:00]}  Rac8 {[%clk 0:08:05]} 23. Qb1 {[%clk 0:06:22]}  Qb3 {[%clk 0:07:55]} 24. Qc2 {[%clk 0:05:29]}  Qa2 {[%clk 0:07:46]} 25. Bb5 {[%clk 0:04:46]}  Rf8 {[%clk 0:07:20]} 26. Bd7 {[%clk 0:02:56]}  f5 {[%clk 0:06:43]} 27. Bxe6+ {[%clk 0:02:19]}  Qxe6 {[%clk 0:06:44]} 28. Rd6 {[%clk 0:02:20]}  Bxd6 {[%clk 0:06:33]} 29. Rxg7+ {[%clk 0:02:20]}  Kh8 {[%clk 0:06:34]} 30. Nxd6 {[%clk 0:02:01]}  Rxc3 {[%clk 0:06:10]} 31. Qxc3 {[%clk 0:01:54]}  Qh6+ {[%clk 0:06:02]} 32. Rg5+ {[%clk 0:01:50]} 1-0


[Site "Internet"]

[Event "Chessable Masters - Torneo preliminare"]
[White "Ponkratov, Pavel"]
[Black "Sankalp, Gupta"]
[WhiteFideId "4157800"]
[BlackFideId "5097010"]
[WhiteElo "2586"]
[BlackElo "2427"]
[Result "1/2-1/2"]
[Round "6"]
[TimeControl "600+2"]
[Date "2023.03.13"]
[WhiteClock "0:05:32"]
[BlackClock "0:05:18"]

1. e4 {[%clk 0:07:43]}  c6 {[%clk 0:08:58]} 2. d4 {[%clk 0:07:43]}  d5 {[%clk 0:09:00]} 3. e5 {[%clk 0:07:45]}  Bf5 {[%clk 0:09:00]} 4. f4 {[%clk 0:07:45]}  e6 {[%clk 0:08:57]} 5. Nf3 {[%clk 0:07:46]}  c5 {[%clk 0:08:55]} 6. Bd3 {[%clk 0:07:47]}  Bxd3 {[%clk 0:08:44]} 7. Qxd3 {[%clk 0:07:47]}  cxd4 {[%clk 0:08:44]} 8. f5 {[%clk 0:07:45]}  Qa5+ {[%clk 0:08:30]} 9. Nbd2 {[%clk 0:07:38]}  Qa6 {[%clk 0:08:28]} 10. fxe6 {[%clk 0:07:38]}  fxe6 {[%clk 0:08:28]} 11. Nxd4 {[%clk 0:07:34]}  Qxd3 {[%clk 0:08:26]} 12. cxd3 {[%clk 0:07:35]}  Kd7 {[%clk 0:08:28]} 13. O-O {[%clk 0:07:36]}  Nc6 {[%clk 0:08:15]} 14. Nxc6 {[%clk 0:07:25]}  bxc6 {[%clk 0:08:17]} 15. Rf7+ {[%clk 0:07:23]}  Ne7 {[%clk 0:08:16]} 16. Nb3 {[%clk 0:07:22]}  Ke8 {[%clk 0:08:16]} 17. Rf3 {[%clk 0:07:23]}  Ng6 {[%clk 0:08:03]} 18. d4 {[%clk 0:07:23]}  Be7 {[%clk 0:07:57]} 19. Rc3 {[%clk 0:07:23]}  Kd7 {[%clk 0:07:57]} 20. Be3 {[%clk 0:07:20]}  a5 {[%clk 0:07:53]} 21. a4 {[%clk 0:07:06]}  Rhb8 {[%clk 0:07:53]} 22. Rac1 {[%clk 0:06:56]}  Rb6 {[%clk 0:07:44]} 23. R1c2 {[%clk 0:06:50]}  h5 {[%clk 0:07:31]} 24. g3 {[%clk 0:06:48]}  Bb4 {[%clk 0:06:47]} 25. Rd3 {[%clk 0:06:37]}  Rab8 {[%clk 0:06:48]} 26. Bd2 {[%clk 0:06:31]}  Bxd2 {[%clk 0:05:26]} 27. Nc5+ {[%clk 0:06:30]}  Ke7 {[%clk 0:05:27]} 28. Rdxd2 {[%clk 0:06:32]}  Nf8 {[%clk 0:05:28]} 29. Rf2 {[%clk 0:06:25]}  Nd7 {[%clk 0:05:27]} 30. Nxd7 {[%clk 0:06:24]}  Kxd7 {[%clk 0:05:29]} 31. Rf7+ {[%clk 0:06:25]}  Ke8 {[%clk 0:05:30]} 32. Rxg7 {[%clk 0:06:26]}  Rxb2 {[%clk 0:05:32]} 33. Rxc6 {[%clk 0:06:26]}  Kf8 {[%clk 0:05:27]} 34. Rg6 {[%clk 0:06:17]}  Rd2 {[%clk 0:05:27]} 35. Rf6+ {[%clk 0:06:17]}  Kg7 {[%clk 0:05:28]} 36. Rcxe6 {[%clk 0:06:14]}  Rb1+ {[%clk 0:05:25]} 37. Rf1 {[%clk 0:06:14]}  Rbb2 {[%clk 0:05:22]} 38. Re7+ {[%clk 0:06:13]}  Kg8 {[%clk 0:05:22]} 39. Rc1 {[%clk 0:05:39]}  Rg2+ {[%clk 0:05:18]} 40. Kf1 {[%clk 0:05:32]} 1/2-1/2


[Site "Internet"]